bitfinex-derivatives/quotes_ETHF0:USTF0_20260201
["timestamp","ask_amount","ask_price","bid_price","bid_amount"]
[1769948608456,4.43558762,2393.5,2392.3,0.14755861]
[1769948608656,0.00308936,2393.5,2392.5,0.14755861]
[1769948609162,4.43787766,2393.4,2392.7,0.14755861]
[1769948609362,0.00308936,2393.5,2392.7,0.14755861]
[1769948609562,4.43889859,2393.4,2392.9,0.14755861]
[1769948609758,6.07029913,2394.4,2392.9,0.14755861]
[1769948609759,0.08361771,2394.5,2392.9,0.14755861]
[1769948609963,7.28782345,2395.2,2393.1,0.14755861]
[1769948609964,0.08361771,2394.3,2393.1,0.14755861]
[1769948610164,4.44004564,2394.2,2393.1,0.14755861]
[1769948610464,4.44004564,2394.2,2393.6,3.41075295]
[1769948610661,4.44004564,2394.2,2393.7,3.229]
[1769948610859,4.44004564,2394.1,2393.7,3.229]
[1769948611258,4.44004564,2394.1,2393.8,0.14755861]
[1769948611560,0.00466425,2394.2,2393.8,0.14755861]
[1769948611762,0.00466425,2394.2,2393.9,16.96783559]
[1769948612063,0.08933349,2395.0,2394.0,0.14755861]
[1769948612264,4.44521713,2394.9,2394.0,0.14755861]
[1769948612462,4.44521713,2394.8,2394.1,14.72927698]
[1769948612665,4.44521713,2394.7,2394.1,14.72927698]
[1769948612861,4.44521713,2394.6,2393.3,0.14755861]
[1769948613061,4.44521713,2394.5,2393.4,5.47055861]
[1769948613262,4.44521713,2394.5,2393.5,14.87683559]
[1769948613461,4.44521713,2394.5,2393.6,0.14755861]
[1769948613862,4.44521713,2394.5,2393.7,3.233]
[1769948614058,4.44521713,2394.5,2393.7,5.47155861]
[1769948614464,4.44521713,2394.4,2393.8,14.87683559]
[1769948614664,4.44521713,2394.3,2393.9,0.14755861]
[1769948614866,4.44521713,2394.2,2393.9,0.14755861]
[1769948615058,4.44521713,2394.1,2394.0,14.87683559]
[1769948615262,0.00451516,2394.6,2394.0,0.14755861]
[1769948615470,6.07029913,2394.3,2391.6,0.37312599]
[1769948615770,6.07029913,2394.3,2389.9,4.174]
[1769948615771,7.28782345,2393.4,2391.9,0.2092]
[1769948615969,4.86861565,2393.1,2392.0,4.542]
[1769948616166,4.4515222,2393.0,2392.0,4.542]
[1769948616471,4.86861565,2393.5,2392.1,0.20919]
[1769948616670,9.31989052,2393.4,2392.1,0.20919]
[1769948616870,4.45127487,2393.3,2392.1,0.20919]
[1769948617373,4.45325425,2393.2,2392.1,0.20919]
[1769948617575,4.45325425,2393.1,2392.1,0.20919]
[1769948617764,4.45325425,2393.0,2392.2,0.15461687]
[1769948617968,4.86861565,2393.4,2392.2,0.15461687]
[1769948618167,4.45512312,2393.3,2392.2,0.15461687]
[1769948618368,4.45512312,2393.2,2392.2,0.15461687]
[1769948618570,4.45512312,2393.1,2392.2,0.15461687]
[1769948618771,4.45512312,2393.0,2392.2,0.15461687]
[1769948618973,4.86861565,2393.4,2392.2,0.15461687]
[1769948619173,4.35078257,2393.3,2392.2,0.15461687]
[1769948619374,4.35078257,2393.2,2392.2,0.15461687]
[1769948619574,4.35078257,2393.1,2392.2,0.15461687]
[1769948619876,4.86861565,2393.4,2392.2,0.15461687]
[1769948619877,4.35078257,2393.0,2392.2,0.15461687]
[1769948620169,4.86861565,2393.4,2392.2,0.15461687]
[1769948620375,4.35311073,2393.3,2392.2,0.15461687]
[1769948620569,4.35311073,2393.2,2392.2,0.15461687]
[1769948620770,4.35311073,2393.1,2392.2,0.15461687]
[1769948620972,4.86861565,2393.5,2392.3,0.15461687]
[1769948621167,5.03092491,2393.5,2392.3,0.15461687]
[1769948621368,4.86861565,2393.4,2392.3,0.36378687]
[1769948621573,5.03092491,2393.5,2392.4,0.20917]
[1769948621778,0.16230926,2393.5,2392.4,0.21244238]
[1769948623279,0.16269631,2393.4,2392.4,0.20917]
[1769948623478,0.16269631,2393.2,2392.5,4.542]
[1769948624378,0.16269417,2393.1,2392.5,4.542]
[1769948625578,0.16269417,2393.1,2391.5,0.07273373]
[1769948625579,0.15647165,2392.5,2388.7,2.09]
[1769948625777,36.72506604,2390.5,2389.6,2.09]
[1769948626081,36.72506604,2390.5,2389.7,2.09]
[1769948626280,36.72506604,2390.6,2389.8,2.452]
[1769948626478,36.72857978,2390.6,2389.8,2.45571206]
[1769948627077,36.72857978,2390.6,2389.8,2.091]
[1769948627078,36.72506604,2390.1,2389.8,2.091]
[1769948627276,4.89597654,2390.3,2389.9,1.87971206]
[1769948627277,36.72506604,2390.3,2389.9,1.87971206]
[1769948627479,36.72506604,2390.4,2389.9,1.87971206]
[1769948627781,36.72506604,2390.4,2389.9,2.03807732]
[1769948628082,36.72506604,2390.3,2389.9,2.03807732]
[1769948628381,0.00351374,2390.6,2390.0,0.15836526]
[1769948628783,4.89597654,2391.2,2390.0,0.15836526]
[1769948629177,0.14971153,2391.1,2389.9,0.00389317]
[1769948629376,0.14971153,2391.1,2389.9,4.54789317]
[1769948629779,0.15314175,2391.1,2389.9,4.54789317]
[1769948630379,0.00343022,2391.1,2390.0,0.15836526]
[1769948631380,0.00343022,2391.1,2390.1,0.15836526]
[1769948632984,3.67731877,2391.0,2390.1,0.15836526]
[1769948633180,0.00343022,2391.1,2390.1,0.15836526]
[1769948636785,0.00343022,2391.1,2390.1,0.36773526]
[1769948636985,0.00343022,2391.1,2390.2,0.15836526]
[1769948637288,0.00343022,2391.1,2390.3,0.36771526]
[1769948637490,0.00343022,2391.1,2390.4,0.15836526]
[1769948641484,0.15647165,2392.0,2390.4,0.15836526]
[1769948641687,3.6721756,2391.9,2390.4,0.15836526]
[1769948641884,3.6721756,2391.8,2390.4,0.15836526]
[1769948642090,0.15647165,2392.0,2390.4,0.15836526]
[1769948642291,3.67223292,2391.9,2390.4,0.15836526]
[1769948642491,3.67223292,2391.8,2390.4,0.15836526]
[1769948643083,3.67223292,2391.8,2390.6,0.15836526]
[1769948643687,3.67223292,2391.8,2390.8,0.15836526]
[1769948643688,3.82870457,2391.8,2390.8,0.15836526]
[1769948643885,3.67223292,2391.7,2390.8,0.15836526]
[1769948644284,3.82870457,2391.7,2390.9,2.092]
[1769948644595,3.67223292,2391.6,2390.9,2.092]
[1769948644790,3.67223292,2391.6,2390.8,0.15836526]
[1769948645093,3.67223292,2391.6,2390.8,2.25036526]
[1769948645289,3.67223292,2391.6,2390.8,0.15836526]
[1769948645491,0.15647165,2391.5,2388.1,0.96428917]
[1769948645697,0.15647165,2391.5,2383.9,2.092]
[1769948645698,0.15647165,2388.6,2383.9,2.092]
[1769948645900,5.03818887,2385.6,2383.6,1.2]
[1769948646098,4.88171722,2385.4,2384.0,4.546]
[1769948646394,8.55106367,2385.3,2382.7,0.34017407]
[1769948646693,0.00493671,2385.4,2383.9,0.00496048]
[1769948646899,0.00493671,2385.4,2384.7,6.84375851]
[1769948647090,0.00493671,2385.4,2384.6,6.84375851]
[1769948647285,0.00493671,2385.4,2384.7,4.971]
[1769948647491,0.1524835,2387.0,2384.7,4.971]
[1769948647793,0.20962,2387.3,2385.4,0.15603041]
[1769948647998,0.1524835,2387.4,2385.6,0.15603041]
[1769948648195,0.1524835,2387.8,2385.6,0.15603041]
[1769948648394,0.00339352,2387.8,2385.8,0.15603041]
[1769948648589,0.00339352,2387.8,2385.9,0.15603041]
[1769948648799,0.14774463,2387.8,2386.1,0.15603041]
[1769948648993,0.00339352,2387.8,2386.3,0.15603041]
[1769948649198,0.00339352,2387.8,2386.4,5.426]
[1769948649390,0.14774463,2387.8,2386.3,0.15603041]
[1769948649696,0.14774463,2387.8,2385.6,0.00401605]
[1769948649697,0.14774463,2387.8,2386.2,2.094]
[1769948649895,0.14774463,2387.8,2385.6,0.00401605]
[1769948650298,0.14435111,2387.5,2385.6,0.16004646]
[1769948650799,0.00339352,2387.8,2385.8,0.15603041]
[1769948651396,0.00339352,2387.8,2385.9,0.15603041]
[1769948651597,0.15031181,2387.8,2386.1,0.15603041]
[1769948652595,0.15031181,2387.8,2385.7,0.15603041]
[1769948654804,0.15356931,2387.6,2385.8,2.095]
[1769948655012,0.15356931,2387.6,2385.7,0.15603041]
[1769948655200,0.15356931,2387.5,2385.7,0.15603041]
[1769948655508,0.15356931,2386.9,2385.6,0.00401605]
[1769948655709,0.36321931,2386.9,2385.6,0.00401605]
[1769948655909,0.15356931,2386.8,2385.6,0.00401605]
[1769948656109,0.36323931,2386.7,2385.6,0.00401605]
[1769948656409,0.15356931,2386.6,2384.9,0.15603041]
[1769948656609,0.15356931,2386.3,2384.5,0.15603041]
[1769948657508,0.15356931,2386.2,2384.5,0.0047003]
[1769948657706,0.15356931,2386.0,2384.5,0.0047003]
[1769948657913,0.15808928,2386.0,2384.5,0.0047003]
[1769948659214,0.36333931,2385.6,2384.5,0.0047003]
[1769948659410,0.15356931,2385.5,2384.5,0.0047003]
[1769948659714,0.15356931,2385.4,2383.5,0.15603041]
[1769948659911,0.20978,2385.5,2384.1,0.15603041]
[1769948660111,0.00451997,2386.0,2384.4,0.15603041]
[1769948660308,0.00451997,2386.0,2385.0,6.99978892]
[1769948660610,0.00451997,2386.0,2385.1,0.15603041]
[1769948660810,0.00451997,2386.0,2385.3,6.84375851]
[1769948661010,0.00451997,2386.0,2385.4,6.84375851]
[1769948661211,0.00451997,2386.0,2385.1,0.15603041]
[1769948661411,0.00451997,2386.0,2385.5,6.84375851]
[1769948661802,0.00451997,2386.0,2385.7,6.84375851]
[1769948662007,0.00451997,2386.0,2385.3,6.84375851]
[1769948662310,0.00451997,2386.0,2385.1,0.15603041]
[1769948662510,0.00451997,2386.0,2385.6,0.15603041]
[1769948663012,0.36324931,2386.6,2385.8,6.84375851]
[1769948663211,0.36324931,2386.6,2385.6,0.15603041]
[1769948663410,0.36324931,2386.6,2385.0,0.00365498]
[1769948663411,0.15356931,2387.1,2385.9,6.84375851]
[1769948663610,0.36319931,2387.1,2385.7,0.15603041]
[1769948663912,0.20963,2387.1,2385.9,0.15603041]
[1769948664220,0.21262746,2387.1,2385.9,0.15603041]
[1769948664514,0.21262746,2387.1,2385.9,6.99978892]
[1769948664816,0.21262746,2387.1,2386.1,6.84375851]
[1769948665016,0.21262746,2387.1,2386.0,0.15603041]
[1769948665213,0.21262746,2387.1,2386.0,6.99978892]
[1769948665617,0.00299746,2387.1,2386.1,6.84375851]
[1769948665817,0.00299746,2387.1,2386.3,6.84375851]
[1769948666020,0.00299746,2387.1,2386.2,0.15603041]
[1769948666209,0.00299746,2387.1,2386.4,6.84375851]
[1769948666415,9.71253152,2387.4,2386.8,6.84375851]
[1769948666613,9.71253152,2387.4,2386.7,0.15603041]
[1769948666814,0.15356931,2388.0,2387.0,6.84375851]
[1769948667013,0.15356931,2388.0,2386.7,0.15603041]
[1769948667214,0.15356931,2387.9,2386.7,0.15603041]
[1769948667415,0.3673345,2387.9,2386.7,0.15946919]
[1769948667820,0.3673345,2387.9,2386.7,7.0032277]
[1769948668716,0.3673345,2387.9,2385.9,0.15603041]
[1769948668717,0.15356931,2387.6,2385.9,0.15603041]
[1769948668918,0.20963,2387.2,2385.9,0.15603041]
[1769948669318,0.20963,2387.2,2386.0,0.15603041]
[1769948669821,0.15356931,2387.1,2386.0,0.16105928]
[1769948670218,0.36320931,2387.1,2386.0,5.46816949]
[1769948670521,0.15356931,2386.9,2386.0,0.00502887]
[1769948670721,0.36321931,2386.9,2386.0,0.00502887]
[1769948672124,0.15356931,2386.6,2384.7,0.15603041]
[1769948672624,0.15356931,2386.6,2385.2,0.15603041]
[1769948673018,0.20967,2386.7,2385.6,0.15603041]
[1769948673214,0.36323931,2386.7,2385.6,0.15603041]
[1769948673422,0.36323931,2386.7,2385.6,5.30711021]
[1769948673619,38.13580636,2387.4,2385.2,0.15918909]
[1769948673620,0.15356931,2386.4,2385.2,0.15918909]
[1769948674314,0.15356931,2386.4,2385.4,5.30711021]
[1769948674520,0.20969,2386.4,2385.6,5.30711021]
[1769948674920,0.20969,2386.4,2385.2,0.15918909]
[1769948675223,0.20972,2386.1,2385.2,5.31026889]
[1769948675417,0.20972,2386.1,2384.8,0.15603041]
[1769948675418,0.15356931,2386.0,2384.8,0.15603041]
[1769948675621,36.19337567,2386.0,2384.9,5.30711021]
[1769948675821,36.19337567,2386.0,2385.0,5.30711021]
[1769948676023,36.03980636,2386.0,2385.2,5.30711021]
[1769948676222,0.15356931,2385.9,2384.8,0.15603041]
[1769948676518,0.20973,2386.0,2384.8,0.15910922]
[1769948676722,0.20973,2386.0,2384.9,5.30711021]
[1769948676921,0.20973,2386.0,2384.8,0.15910922]
[1769948677122,36.24953636,2386.0,2385.0,5.30711021]
[1769948677522,36.24953636,2386.0,2385.1,5.30711021]
[1769948677723,0.48939541,2385.9,2385.0,5.30711021]
[1769948678121,0.48939541,2385.9,2385.1,5.30711021]
[1769948678321,0.27964541,2385.8,2384.8,0.00307881]
[1769948678526,0.48939541,2385.8,2385.0,5.30711021]
[1769948678726,0.20976,2385.7,2384.8,0.00307881]
[1769948679027,0.20976,2385.7,2385.1,5.30711021]
[1769948679220,36.03980636,2385.9,2385.2,5.30711021]
[1769948679420,36.03980636,2385.9,2384.9,0.25321838]
[1769948679627,36.03980636,2385.9,2385.4,5.30711021]
[1769948680128,36.03980636,2385.9,2385.5,5.29959278]
[1769948680321,36.03980636,2386.0,2385.6,5.29959278]
[1769948680523,0.00436815,2386.1,2385.5,0.25321838]
[1769948680717,4.85109033,2386.5,2386.0,5.29959278]
[1769948680718,36.03980636,2386.5,2386.0,5.29959278]
[1769948680928,36.03980636,2386.5,2386.1,5.29959278]
[1769948681128,33.59203378,2386.6,2386.4,5.29959278]
[1769948681325,5.13073574,2387.1,2386.0,0.25321838]
[1769948681523,5.13073574,2387.1,2386.1,5.29959278]
[1769948681722,0.27964541,2387.0,2386.0,0.25321838]
[1769948681923,4.85410391,2387.1,2386.0,0.25321838]
[1769948682124,0.00301358,2387.1,2386.5,5.29959278]
[1769948682429,0.00301358,2387.1,2386.5,0.00418698]
[1769948682727,0.00301358,2387.1,2386.9,5.29959278]
[1769948682931,6.25891012,2387.7,2386.5,0.25740536]
[1769948683126,6.25891012,2387.7,2386.6,0.16584346]
[1769948683323,15.98312997,2387.8,2386.7,0.25321838]
[1769948683523,9.93379985,2387.8,2387.0,0.16584346]
[1769948683932,9.93923062,2387.8,2387.1,0.16584346]
[1769948684130,9.93923062,2387.8,2387.0,0.16584346]
[1769948684330,9.93923062,2387.8,2387.1,0.16584346]
[1769948684522,0.00543077,2387.8,2387.2,0.5482492]
[1769948684731,0.00543077,2387.8,2387.2,0.38240574]
[1769948684930,0.00543077,2387.8,2387.4,0.16584346]
[1769948685232,0.35703323,2388.5,2387.7,0.16584346]
[1769948685429,7.27410288,2388.7,2387.7,0.16584346]
[1769948685430,6.25882012,2388.8,2387.7,0.16584346]
[1769948685625,0.20949,2388.7,2387.4,0.38240574]
[1769948685827,0.35771776,2388.6,2387.4,0.38240574]
[1769948686133,0.35771776,2388.6,2387.4,0.5482492]
[1769948686335,0.35771776,2388.6,2387.5,0.16584346]
[1769948686336,0.36304147,2388.6,2387.5,0.16584346]
[1769948686932,0.36304147,2388.6,2387.6,0.16584346]
[1769948687236,0.36304147,2388.6,2387.5,0.16584346]
[1769948687429,0.36304147,2388.6,2387.4,0.38240574]
[1769948687628,0.36304147,2388.6,2387.5,0.16584346]
[1769948687827,0.36304147,2388.6,2387.4,0.38240574]
[1769948688034,0.36304147,2388.6,2387.5,0.16584346]
[1769948688333,0.36304147,2388.6,2387.5,0.5482492]
[1769948688538,0.36304147,2388.6,2387.6,0.16584346]
[1769948688836,0.00532371,2388.6,2387.9,0.16584346]
[1769948689032,0.36304147,2388.6,2387.6,0.16584346]
[1769948689534,0.36304147,2388.6,2387.7,0.16584346]
[1769948689734,0.00532371,2388.6,2387.7,0.38240574]
[1769948689936,0.00532371,2388.6,2388.0,0.16584346]
[1769948690335,0.00532371,2388.6,2388.3,0.16584346]
[1769948690535,0.00532371,2388.6,2388.3,0.16939212]
[1769948690731,0.00532371,2388.6,2388.5,0.16584346]
[1769948691738,0.00532371,2388.6,2388.5,0.10829826]
[1769948692239,0.20945,2389.2,2388.3,0.00354866]
[1769948692432,0.20945,2389.2,2388.5,0.10297455]
[1769948692939,0.20945,2389.2,2388.6,0.10297455]
[1769948693235,0.21240917,2389.2,2388.5,0.10297455]
[1769948693837,0.21240917,2389.2,2388.6,0.10297455]
[1769948694136,0.21240917,2389.2,2388.5,0.10297455]
[1769948694534,0.21240917,2389.2,2388.8,0.10297455]
[1769948694738,0.21240917,2389.2,2388.7,0.10297455]
[1769948695138,0.21240917,2389.2,2388.3,0.3859544]
[1769948697835,0.00295917,2389.2,2388.3,0.3859544]
[1769948698840,0.56712776,2389.7,2388.3,0.3859544]
[1769948699041,0.20941,2389.7,2388.3,0.3859544]
[1769948699340,0.56712776,2389.7,2388.3,0.3859544]
[1769948699939,0.57050417,2389.7,2388.3,0.3859544]
[1769948700134,0.21278641,2389.7,2388.3,0.3859544]
[1769948701542,0.20378641,2389.7,2388.3,0.3859544]
[1769948703147,0.00337641,2389.7,2388.3,2.8439544]
[1769948703344,0.00337641,2389.7,2388.4,0.38240574]
[1769948703645,0.20937,2390.2,2388.4,0.38240574]
[1769948703842,0.35771776,2389.8,2388.4,0.38240574]
[1769948704243,0.56711776,2389.8,2388.4,0.38240574]
[1769948704545,0.57189231,2389.8,2388.4,0.38240574]
[1769948704947,0.21417455,2389.8,2388.4,0.38240574]
[1769948706349,0.00477455,2389.8,2388.4,0.38240574]
[1769948708853,0.20941,2389.7,2388.4,0.38240574]
[1769948713259,0.00477455,2389.8,2388.4,0.38240574]
[1769948713754,0.33984659,2390.8,2388.7,2.84789295]
[1769948713957,0.33984659,2390.8,2388.9,0.38314949]
[1769948714857,0.34460209,2390.8,2388.9,0.38314949]
[1769948715154,0.20932,2390.7,2389.0,0.38314949]
[1769948715360,0.53584899,2390.7,2389.1,0.38314949]
[1769948717960,0.20932,2390.7,2389.1,0.38314949]
[1769948718857,0.51887511,2390.6,2389.1,0.38314949]
[1769948719964,0.20933,2390.6,2389.1,0.38314949]
[1769948720464,0.51418962,2390.4,2389.1,0.38314949]
[1769948722862,0.20934,2390.4,2389.1,0.38314949]
[1769948724666,4.92231713,2390.6,2389.1,0.38314949]
[1769948725061,0.50388683,2390.7,2389.1,0.38314949]
[1769948725062,4.92231713,2390.7,2389.1,0.38314949]
[1769948725262,0.0047555,2390.8,2389.2,0.38314949]
[1769948725456,0.0047555,2390.8,2389.2,2.46474346]
[1769948725661,0.0047555,2390.8,2389.3,0.38314949]
[1769948726766,0.0047555,2390.8,2389.5,0.38314949]
[1769948728364,0.0047555,2390.8,2389.6,0.38314949]
[1769948728967,4.92231713,2391.4,2389.6,0.38314949]
[1769948729365,0.263223,2391.3,2389.6,0.38314949]
[1769948729569,0.263223,2391.3,2389.7,0.38314949]
[1769948729764,0.472493,2391.3,2389.7,0.38314949]
[1769948729970,0.47686934,2391.3,2389.7,0.38314949]
[1769948732569,0.21364634,2391.3,2389.7,0.38314949]
[1769948732775,0.21364634,2391.3,2389.8,0.38314949]
[1769948733169,0.45290296,2391.3,2389.8,0.38314949]
[1769948734068,0.23318145,2391.2,2389.8,0.38314949]
[1769948735979,0.43104884,2391.0,2389.8,0.38314949]
[1769948738075,0.2093,2391.0,2389.8,0.38314949]
[1769948743082,0.00437634,2391.3,2389.9,0.28893749]
[1769948743580,0.00437634,2391.3,2389.9,2.75368095]
[1769948743777,0.00437634,2391.3,2390.0,0.28893749]
[1769948743982,0.00437634,2391.3,2390.0,0.29269495]
[1769948745685,0.00437634,2391.3,2390.1,0.2748131]
[1769948746984,0.16691651,2391.2,2390.1,0.2748131]
[1769948747983,0.37619651,2391.2,2390.1,0.2748131]
[1769948748178,0.15951458,2391.1,2390.1,0.2748131]
[1769948748984,0.15167491,2391.0,2390.1,0.2748131]
[1769948749790,0.20929,2391.1,2390.1,0.2748131]
[1769948753294,0.00437634,2391.3,2390.1,0.2748131]
[1769948760601,0.00437634,2391.3,2390.3,0.2748131]
[1769948761196,0.00437634,2391.3,2390.3,2.73955656]
[1769948761395,0.20922,2391.8,2390.5,0.2748131]
[1769948762096,6.04933012,2392.2,2390.6,0.2748131]
[1769948762291,6.04933012,2392.2,2390.8,0.2748131]
[1769948762292,0.00289381,2392.2,2390.8,0.2748131]
[1769948763005,0.25160055,2392.0,2390.8,0.2748131]
[1769948763504,0.04239055,2391.9,2390.8,0.2748131]
[1769948763699,0.04239055,2391.8,2390.8,0.2748131]
[1769948764695,0.04239055,2391.8,2390.0,2.46850092]
[1769948764898,0.20934,2390.5,2389.0,0.2748131]
[1769948765099,0.20934,2390.5,2389.1,0.2748131]
[1769948765501,0.20934,2390.5,2389.3,0.2748131]
[1769948765701,36.83034377,2390.3,2389.3,0.2748131]
[1769948766001,0.00377503,2390.5,2389.5,0.2748131]
[1769948766402,0.00377503,2390.5,2389.6,0.2748131]
[1769948767806,0.00377503,2390.5,2389.7,15.36027007]
[1769948768001,0.00377503,2390.5,2389.8,0.41328819]
[1769948768200,37.2456453,2391.0,2390.1,0.41328819]
[1769948768501,36.83034377,2390.9,2390.1,0.41328819]
[1769948768700,37.2456453,2391.0,2390.1,0.41328819]
[1769948768903,37.2456453,2391.0,2390.1,15.36027007]
[1769948769104,37.24852154,2391.0,2390.1,15.36027007]
[1769948770706,36.83322001,2391.0,2390.2,0.41328819]
[1769948770906,0.00287624,2391.0,2390.3,0.41328819]
[1769948771106,36.83034377,2391.2,2390.5,0.41328819]
[1769948771501,36.83034377,2391.2,2390.2,3.53128819]
[1769948771698,36.83034377,2391.2,2390.4,14.94698188]
[1769948771898,36.83034377,2391.2,2390.4,15.36027007]
[1769948772103,4.9107125,2391.5,2390.7,0.41328819]
[1769948772404,5.28870508,2391.7,2390.7,0.41328819]
[1769948772607,5.28870508,2391.7,2390.8,15.36027007]
[1769948772911,5.28870508,2391.7,2390.8,0.41328819]
[1769948773107,4.9107125,2391.9,2391.0,0.41328819]
[1769948773309,4.9107125,2391.9,2391.0,0.41686862]
[1769948773609,4.9107125,2392.0,2391.0,0.41686862]
[1769948773811,4.9107125,2392.0,2391.1,14.94698188]
[1769948774011,4.9107125,2392.0,2391.1,15.36027007]
[1769948774208,5.27987797,2392.1,2391.2,0.41328819]
[1769948774605,6.04933012,2392.6,2391.4,0.41328819]
[1769948774812,0.3585264,2392.9,2391.9,0.41328819]
[1769948775113,0.3585264,2392.9,2391.9,2.86828819]
[1769948775304,0.3585264,2392.9,2392.0,10.0379757]
[1769948775911,0.3585264,2392.9,2392.0,10.45126389]
[1769948776608,0.41530153,2392.6,2391.1,0.41328819]
[1769948776813,0.41530153,2392.5,2391.2,0.41328819]
[1769948777106,0.41530153,2392.2,2391.2,0.41328819]
[1769948778316,0.41530153,2392.2,2391.3,0.41328819]
[1769948778612,0.41530153,2392.5,2391.6,6.12615744]
[1769948778815,0.41530153,2392.5,2391.4,10.45126389]
[1769948779015,0.41530153,2392.5,2391.4,0.41328819]
[1769948779216,0.41530153,2392.5,2391.5,10.0379757]
[1769948779612,0.41530153,2392.5,2391.3,3.104]
[1769948779915,0.41530153,2392.5,2391.4,10.0379757]
[1769948780612,0.62447153,2392.4,2391.3,3.104]
[1769948780816,0.41530153,2392.3,2391.3,13.1419757]
[1769948781319,0.41530153,2392.3,2391.3,13.55526389]
[1769948782520,0.2092,2392.1,2391.3,10.45126389]
[1769948782715,0.2092,2392.1,2391.4,10.0379757]
[1769948783118,0.2092,2392.1,2391.4,16.16413314]
[1769948783823,0.2092,2392.1,2391.4,16.57742133]
[1769948784722,0.41530153,2392.5,2391.5,6.53944563]
[1769948784914,0.41530153,2392.5,2391.5,0.41328819]
[1769948786014,0.20915,2392.7,2391.8,6.53944563]
[1769948786213,0.20915,2392.7,2391.9,6.53944563]
[1769948786411,0.20915,2392.7,2392.0,6.12615744]
[1769948786618,0.20915,2392.7,2392.1,6.12615744]
[1769948786810,0.41530153,2392.8,2391.5,3.132]
[1769948786811,0.00463847,2392.8,2391.5,0.41328819]
[1769948787012,0.20916,2392.5,2391.6,10.0379757]
[1769948787215,0.20916,2392.5,2391.6,10.46889574]
[1769948788023,0.20916,2392.5,2391.7,0.43121236]
[1769948788218,0.20916,2392.5,2391.8,0.43121236]
[1769948788426,0.20916,2392.5,2391.8,10.46918806]
[1769948788620,0.20916,2392.5,2391.8,15.31438604]
[1769948789325,0.20916,2392.5,2391.9,0.42908049]
[1769948789517,6.11730505,2392.9,2391.9,0.42908049]
[1769948789724,0.20915,2392.7,2392.0,10.46705619]
[1769948789924,0.20915,2392.7,2392.0,0.42908049]
[1769948790120,0.20915,2392.7,2392.1,5.27641034]
[1769948790722,0.20915,2392.7,2392.2,0.42940545]
[1769948791028,0.2091,2393.2,2392.5,5.27641034]
[1769948791226,0.2091,2393.2,2392.4,0.42682637]
[1769948791521,0.2091,2393.2,2392.4,10.46480207]
[1769948792426,0.2091,2393.2,2392.6,0.42735323]
[1769948792926,0.2091,2393.2,2392.7,5.27641034]
[1769948793126,0.2091,2393.2,2392.7,5.7074407]
[1769948794127,0.2091,2393.2,2392.8,5.70424583]
[1769948794521,0.2091,2393.2,2392.9,5.27641034]
[1769948795721,4.88887543,2393.3,2392.9,4.85435034]
[1769948795927,4.88887543,2393.2,2392.7,0.00373047]
[1769948796425,0.20913,2392.8,2392.2,0.42881387]
[1769948796726,0.20913,2392.8,2392.2,10.47052004]
[1769948797529,0.21286047,2392.8,2392.2,10.4748579]
[1769948800125,5.1017359,2392.8,2392.2,10.4748579]
[1769948801422,4.88887543,2392.7,2392.2,8.20121403]
[1769948801625,0.00373047,2392.8,2392.2,8.20121403]
[1769948801626,4.88887543,2392.6,2392.2,0.00433786]
[1769948802824,3.09410288,2393.0,2392.3,0.410058]
[1769948803123,0.20911,2393.1,2392.3,7.98776617]
[1769948803320,4.18,2393.0,2392.3,7.98776617]
[1769948804029,7.225,2393.0,2392.3,7.98776617]
[1769948804232,0.20913,2392.9,2392.2,0.00433786]
[1769948804418,4.18,2392.7,2392.2,7.99210403]
[1769948804829,13.14681491,2393.8,2392.3,0.48505435]
[1769948805026,17.58278939,2394.5,2392.3,0.48505435]
[1769948805027,0.20908,2393.4,2392.3,0.48505435]
[1769948805328,0.67567758,2393.3,2392.4,6.36036246]
[1769948805629,0.67567758,2393.3,2392.4,6.84541681]
[1769948805828,0.67966109,2393.3,2392.4,6.84929109]
[1769948806428,0.20911,2393.1,2392.4,6.84929109]
[1769948807427,0.20911,2393.1,2392.5,0.48505435]
[1769948807626,0.20911,2393.1,2392.7,0.48505435]
[1769948807827,0.20911,2393.1,2392.6,6.36036246]
[1769948808527,0.20911,2393.1,2392.6,6.84541681]
[1769948809526,0.00398351,2393.3,2392.7,0.48505435]
[1769948809726,0.20906,2393.7,2392.8,0.48505435]
[1769948810032,0.46658758,2393.4,2392.7,6.36036246]
[1769948810226,0.20909,2393.3,2392.7,6.36036246]
[1769948810626,0.67567758,2393.3,2392.7,6.36036246]
[1769948810828,0.20913,2392.9,2392.4,0.00387428]
[1769948811131,0.20913,2392.9,2392.6,5.67128071]
[1769948811326,0.20913,2392.9,2392.6,5.22518071]
[1769948811528,0.20914,2392.8,2391.6,0.48505435]
[1769948812529,0.20914,2392.8,2391.6,0.48802015]
[1769948812730,0.00422862,2392.9,2391.6,4.21625635]
[1769948812930,0.2091,2393.2,2391.7,0.48505435]
[1769948813134,0.2091,2393.2,2391.8,0.48505435]
[1769948814832,0.20914,2392.8,2391.8,0.48505435]
[1769948815033,2.899,2392.9,2391.8,0.48505435]
[1769948815230,0.46658758,2393.1,2391.8,0.48505435]
[1769948815430,0.67571758,2392.9,2391.8,0.48505435]
[1769948816335,0.20913,2392.9,2391.8,0.48505435]
[1769948820643,6.36811447,2393.7,2392.1,0.48505435]
[1769948820844,0.20906,2393.7,2392.3,0.48505435]
[1769948822240,0.46658758,2393.5,2392.3,0.48505435]
[1769948823343,3.49058758,2393.5,2392.3,0.48505435]
[1769948825842,3.027,2393.4,2392.3,0.48505435]
[1769948826345,3.49358758,2393.4,2392.3,0.48505435]
[1769948828551,0.37621721,2393.3,2392.3,0.48505435]
[1769948830646,3.39521721,2393.3,2392.3,0.48505435]
[1769948832046,0.20907,2393.5,2392.3,0.48505435]
[1769948832352,0.58528721,2393.5,2392.3,0.48505435]
[1769948833753,3.60528721,2393.5,2392.3,0.48505435]
[1769948835856,0.37621721,2393.4,2392.3,0.48505435]
[1769948836356,0.37621721,2393.3,2392.3,0.48505435]
[1769948838661,0.37621721,2393.1,2392.0,0.35706783]
[1769948838862,0.37621721,2392.8,2391.8,0.35706783]
[1769948839761,0.36156579,2392.7,2391.8,0.35706783]
[1769948840256,0.20913,2392.8,2391.8,0.35706783]
[1769948840554,2.453,2393.1,2391.8,0.35706783]
[1769948840759,2.79301435,2393.1,2391.8,0.35706783]
[1769948841159,0.34001435,2393.1,2391.8,0.35706783]
[1769948843054,0.20909,2393.3,2391.8,0.35706783]
[1769948843263,3.50209474,2393.3,2391.8,0.35706783]
[1769948843563,0.27700474,2393.2,2391.8,0.35706783]
[1769948843861,0.27700474,2393.1,2391.8,0.35706783]
[1769948846361,10.05984097,2393.6,2392.1,0.35706783]
[1769948846554,0.42284406,2393.7,2392.2,0.35706783]
[1769948846555,0.20905,2393.7,2392.2,0.35706783]
[1769948846759,0.20905,2393.7,2392.3,0.35706783]
[1769948848762,0.20905,2393.7,2392.4,0.35706783]
[1769948851370,6.16384097,2393.9,2392.4,0.35706783]